Cogmind - Beta 12 *** ADVENTURER MODE // 2023.05.19 @ 22:49:02 // Winter2019/RPGLIKE Player: Kiks Result: Smashed by cave-in Performance ------------- Evolutions (9) 4500 Regions Visited (28) 5600 Robots Destroyed (656) 3280 Value Destroyed (34192) 34192 Prototype IDs (44) 880 Alien Tech Used (9) 1800 Bonus (30470) 30470 TOTAL SCORE: 80722 Bonus ------- Triggered High Security 500 Triggered Max Security 2000 High Alert Combat Kills 12051 Follower Combat Kills 3752 Network Hubs Disabled 600 Met Warlord at Base 500 MAIN.C Attacked Warlord 500 Warlord Defense Kills 1892 Built Enhanced Grunts 300 A7 Reached Mainframe 300 Met R17 at Cetus 500 Found Hidden Lab 3000 Used Core Reset Matrix 3000 Pursued by Intercept 1500 Met Sigix 2000 Activated Exoskeleton 3000 Friendly Fire -4925 Cogmind --------- Core Integrity 0/1450 Matter 281/350 Energy 447/1311 System Corruption 0% Temperature Cool (5) Movement Walking (77) Ox1 Location -1/Access Parts ------- > --- POWER (2) -------- Quantum-Particle Reactor > --- PROPULSION (4) --- Biometal-Cooled Exoskeleton > --- UTILITY (8) ------ Armored Scrap Engine Experimental Power Amplifier Experimental EM Disruption Field AEGIS Remote Shield > --- WEAPON (9) ------- L-Cannon Hvy. Thermal Nova Construct/C Prc. Thermal Omega Construct/C > --- INVENTORY (5) ---- (None) Peak State ------------ > --- POWER ------------ Quantum-Particle Reactor > --- PROPULSION ------- Biometal-Cooled Exoskeleton > --- UTILITY ---------- Armored Scrap Engine Experimental Power Amplifier Experimental Cooling System AEGIS Remote Shield LC Capacitor > --- WEAPON ----------- Thermal Neutralizer Construct/C Hvy. Thermal Nova Construct/C Prc. Thermal Omega Construct/C Shotgun Ballistic Helical Construct/G Hpw. Kinetic HERF Construct/C > --- INVENTORY -------- Experimental EM Disruption Field Supercharged Sigix Terminator Sigix Containment Pod [Rating: 211] Favorites ----------- Power Constructs Engine Ion Engine Power Core Light Nuclear Core Reactor Constructs Propulsion Constructs Leg Constructs Flight Unit Improved VTOL Module Utility Armored Scrap Engine Device Armored Scrap Engine Processor Improved Targeting Computer Hackware System Mapper Artifact LC Capacitor Weapon Constructs Energy Gun Small Laser Energy Cannon Constructs Ballistic Gun Constructs Ballistic Cannon Constructs Launcher Supercharged Sigix Terminator Build | -11 -10 -10 -9 -9 -9 -8 -8 -8 -8 -6 -6 -6 -6 -6 -5 -5 -5 -5 -4 -4 -4 -4 -3 -3 -2 -2 -2 -1 ------- Run | Jun Mat Min Mat Min Exi Min Mat Sto Rec Fac Ext Cet Arc Hub Fac Upp Upp War Pro Fac Arm Lab Res Qua Res Tes Sec Acc Slots Evolved 19 | 3 . . . . . . 6 4 . . 1 . . 1 1 . . . . . 2 1 . . . . . . Power 1 | . . . . . . . . . . . 1 . . . . . . . . . . . . . . . . . Propulsion 3 | 1 . . . . . . 2 . . . . . . . . . . . . . . . . . . . . . Utility 7 | 1 . . . . . . 2 2 . . . . . . . . . . . . 1 1 . . . . . . Weapon 8 | 1 . . . . . . 2 2 . . . . . 1 1 . . . . . 1 . . . . . . . Parts Attached 90 | 6 3 . 1 . . . 16 8 2 3 . . . 4 6 . 1 7 . . 6 5 . 2 2 5 12 1 Power 2 | 1 . . . . . . 1 . . . . . . . . . . . . . . . . . . . . . Engine 1 | 1 . . . . . . . . . . . . . . . . . . . . . . . . . . . . Core 1 | . . . . . . . 1 . . . . . . . . . . . . . . . . . . . . . Reactor . | . . . . . . . . . . . . . . . . . . . . . . . . . . . . . Propulsion 11 | 2 2 . . . . . 6 . 1 . . . . . . . . . . . . . . . . . . . Treads . | . . . . . . . . . . . . . . . . . . . . . . . . . . . . . Leg 3 | 2 . . . . . . . . 1 . . . . . . . . . . . . . . . . . . . Wheel . | . . . . . . . . . . . . . . . . . . . . . . . . . . . . . Hover . | . . . . . . . . . . . . . . . . . . . . . . . . . . . . . Flight 8 | . 2 . . . . . 6 . . . . . . . . . . . . . . . . . . . . . Utility 57 | 1 . . 1 . . . 1 3 1 1 . . . 4 6 . 1 7 . . 6 5 . 2 2 5 11 . Device 49 | 1 . . . . . . . 2 1 1 . . . 4 4 . 1 7 . . 6 4 . 2 1 4 11 . Storage . | . . . . . . . . . . . . . . . . . . . . . . . . . . . . . Processor 6 | . . . 1 . . . 1 1 . . . . . . 2 . . . . . . . . . 1 . . . Hackware 1 | . . . . . . . . . . . . . . . . . . . . . . . . . . 1 . . Protection . | . . . . . . . . . . . . . . . . . . . . . . . . . . . . . Artifact 1 | . . . . . . . . . . . . . . . . . . . . . . 1 . . . . . . Weapon 20 | 2 1 . . . . . 8 5 . 2 . . . . . . . . . . . . . . . . 1 1 Energy Gun 1 | 1 . . . . . . . . . . . . . . . . . . . . . . . . . . . . Energy Cannon 1 | . . . . . . . . . . . . . . . . . . . . . . . . . . . . 1 Ballistic Gun 17 | 1 1 . . . . . 8 5 . 2 . . . . . . . . . . . . . . . . . . Ballistic Cannon . | . . . . . . . . . . . . . . . . . . . . . . . . . . . . . Launcher 1 | . . . . . . . . . . . . . . . . . . . . . . . . . . . 1 . Special Weapon . | . . . . . . . . . . . . . . . . . . . . . . . . . . . . . Impact Weapon . | . . . . . . . . . . . . . . . . . . . . . . . . . . . . . Slashing Weapon . | . . . . . . . . . . . . . . . . . . . . . . . . . . . . . Piercing Weapon . | . . . . . . . . . . . . . . . . . . . . . . . . . . . . . Special Melee Weapon . | . . . . . . . . . . . . . . . . . . . . . . . . . . . . . Unidentified Prototypes 18 | . . . . . . . 1 . . . . . . 2 5 . . 2 . . 1 2 . 1 . 3 1 . Parts Lost 2 | . . . . . . . . . . . 1 . . . . . . . . . . . . . . . . 1 Power . | . . . . . . . . . . . . . . . . . . . . . . . . . . . . . Propulsion . | . . . . . . . . . . . . . . . . . . . . . . . . . . . . . Utility 2 | . . . . . . . . . . . 1 . . . . . . . . . . . . . . . . 1 Weapon . | . . . . . . . . . . . . . . . . . . . . . . . . . . . . . Highest Loss Streak 1 | . . . . . . . . . . . 1 . . . . . . . . . . . . . . . . 1 To Critical Strikes . | . . . . . . . . . . . . . . . . . . . . . . . . . . . . . Average Slot Usage (%) 63 | . 85 85 94 100 100 100 83 84 79 72 63 61 61 62 61 60 60 59 60 60 56 58 52 52 52 52 51 43 Engine 1 | . 14 14 14 14 14 14 . . . 3 3 4 . . . . . . . . . . . . . . . . Reactor 3 | . . . . . . . . . . . . . 5 5 5 5 5 5 5 5 4 4 4 4 4 4 4 4 Leg 1 | . 4 . . . . . . . . . 1 4 . 3 4 5 3 . . . . . . . 4 1 4 4 Flight 4 | . 24 28 28 28 28 28 29 23 14 2 1 . . . . . . . . . . . 4 3 . 2 . . Device 19 | . 14 14 14 14 14 14 7 7 17 20 18 16 16 19 20 20 20 20 25 25 24 26 17 17 17 17 17 21 Processor 3 | . . . 8 14 14 14 7 9 11 7 5 5 5 5 5 5 5 4 . . . . . . . . . . Energy Gun 6 | . 8 . . . . . . . . 2 12 16 16 13 6 5 5 5 10 11 7 6 5 5 . . . . Energy Cannon 7 | . . . . . . . . . . 3 5 2 . 7 11 10 13 15 13 7 4 6 9 10 13 10 7 5 Ballistic Gun 8 | . 19 28 28 28 28 28 29 34 29 22 2 2 5 3 2 5 1 . . 2 5 4 2 2 8 5 3 . Ballistic Cannon 3 | . . . . . . . . . . 2 5 5 5 . 4 4 5 5 . 3 4 4 2 2 . 3 8 7 Naked Turns . | . . . . . . . . . . . . . . . . . . . . . . . . . . . . . Heaviest Build 164 | 8 8 8 8 8 8 8 18 30 29 34 42 56 56 74 81 81 91 99 98 102 105 116 118 128 128 132 132 164 Greatest Support 227 | 20 20 8 8 8 8 8 25 25 30 38 123 178 178 226 227 227 227 220 184 184 184 221 221 221 215 215 135 135 Greatest Overweight (x) 9 | . 1 . . . . . . 1 1 1 . . . . . . . . . . 1 . . 9 . 9 1 1 Average Overweight (x) . | . . . . . . . . . . . . . . . . . . . . . . . . . . . . . Largest Inventory Capacity 5 | 4 4 4 4 4 4 4 4 4 4 4 4 4 4 4 4 4 4 4 4 4 4 4 4 5 5 5 5 5 Average Capacity 4 | 4 4 4 4 4 4 4 4 4 4 4 4 4 4 4 4 4 4 4 4 4 4 4 4 4 5 5 5 5 Most Carried 5 | . 4 4 4 4 4 4 4 4 4 4 4 4 4 4 4 4 4 4 4 4 4 4 4 5 5 5 5 4 Average Carried 3 | . 2 4 4 4 4 4 3 3 3 3 1 2 4 3 4 4 3 3 4 4 3 3 4 4 5 5 4 3 Final Capacity 5 | 4 4 4 4 4 4 4 4 4 4 4 4 4 4 4 4 4 4 4 4 4 4 4 4 5 5 5 5 5 Final Carried 5 | . 4 4 4 4 4 4 4 4 4 3 . 4 4 4 4 4 4 4 4 4 4 4 4 5 5 5 4 . Scrap Engine Consumption 547 | . . . . . . . . . 75 56 65 18 1 43 26 2 4 16 12 60 97 8 5 23 11 18 7 . Constructs Created 7 | . . . . . . . . . 2 4 1 . . . . . . . . . . . . . . . . . Constructs Modified 152 | . . . . . . . . . . 16 26 4 . 13 14 1 2 5 5 9 19 6 3 12 . 14 3 . Class Distribution -------------------- 56% | Construct 11% | Hacker-Construct 8% | Mutant 7% | Alien-Construct 3% | Commander-Executioner 3% | Sprinter 3% | Commander-Construct Dominant Class ---------------- Mutant | -10/Materials Mutant | -10/Mines Mutant | -9/Materials Mutant | -9/Mines Mutant | -9/Exiles Mutant | -8/Mines Sprinter | -8/Materials Sprinter | -8/Storage Commander-Sprinter | -8/Recycling Commander-Executioner | -6/Factory Construct | -6/Extension Construct | -6/Cetus Commander-Construct | -6/Archives Construct | -6/Hub_04(d) Construct | -5/Factory Construct | -5/Upper Caves Construct | -5/Upper Caves Construct | -5/Warlord Construct | -4/Proximity Caves Construct | -4/Factory Construct | -4/Armory Construct | -4/Lab Alien-Construct | -3/Research Alien-Construct | -3/Quarantine Alien-Construct | -2/Research Hacker-Construct | -2/Testing Hacker-Construct | -2/Section 7 Hacker-Construct | -1/Access Resources | -11 -10 -10 -9 -9 -9 -8 -8 -8 -8 -6 -6 -6 -6 -6 -5 -5 -5 -5 -4 -4 -4 -4 -3 -3 -2 -2 -2 -1 ----------- Run | Jun Mat Min Mat Min Exi Min Mat Sto Rec Fac Ext Cet Arc Hub Fac Upp Upp War Pro Fac Arm Lab Res Qua Res Tes Sec Acc Matter Collected 9713 | 112 228 30 142 14 . . 613 871 828 435 729 42 1 595 302 21 86 127 204 465 295 252 . 744 433 938 1196 10 Remotely . | . . . . . . . . . . . . . . . . . . . . . . . . . . . . . Salvage Created 33836 | 28 266 82 548 . . . 742 1224 1606 1549 2150 92 276 4078 1741 184 683 519 1052 3866 2974 126 962 1634 1394 2451 3399 210 Parts 1657 | 3 22 14 39 . . . 55 99 65 61 91 10 11 195 85 7 11 34 53 159 152 9 71 111 46 94 156 4 Haulers Intercepted 26 | . 1 . 1 . . . 2 5 1 2 . . . 4 3 . . . . . . . 3 . 2 1 1 . Recyclers Shooed 5 | . . . 1 . . . . . 2 . . . . 1 . . . . . . . . 1 . . . . . Parts Field Recycled . | . . . . . . . . . . . . . . . . . . . . . . . . . . . . . Retrieved Matter . | . . . . . . . . . . . . . . . . . . . . . . . . . . . . . Parts Self-Destructed 44 | . . . . . . . . . . . . . . . . 7 6 . 31 . . . . . . . . . Prevented 26 | . . . . . . . . . . . . . . . . . 5 . 21 . . . . . . . . . Kills | -11 -10 -10 -9 -9 -9 -8 -8 -8 -8 -6 -6 -6 -6 -6 -5 -5 -5 -5 -4 -4 -4 -4 -3 -3 -2 -2 -2 -1 ------- Run | Jun Mat Min Mat Min Exi Min Mat Sto Rec Fac Ext Cet Arc Hub Fac Upp Upp War Pro Fac Arm Lab Res Qua Res Tes Sec Acc Combat Hostiles Destroyed 497 | . 7 6 14 1 . . 18 24 17 17 34 3 3 51 22 1 8 16 28 41 50 1 15 23 12 23 60 2 Guns 216 | . 7 6 14 1 . . 18 24 17 11 14 . 2 19 5 . 1 . 8 17 25 1 6 11 3 3 3 . Cannons 256 | . . . . . . . . . . 6 19 3 1 27 15 1 7 16 20 23 23 . 7 9 7 17 53 2 AOE 17 | . . . . . . . . . . . . . . 4 2 . . . . 1 1 . 2 . 2 1 4 . Classes Destroyed 29 | 1 4 . 2 1 . . 2 2 4 . 1 . . 3 1 1 . 1 . 2 . . . 2 . 1 1 . Worker 25 | . 1 . . . . . 1 1 . 2 . . . 5 3 . . . . 5 . . . 1 . 4 1 1 Builder 24 | . . . . . . . . 2 . 1 2 . . 6 2 . . . . 3 . . 1 3 . 3 1 . Tunneler 2 | 1 . . . . . . . . . . . . . . 1 . . . . . . . . . . . . . Hauler 26 | . 1 . 1 . . . 2 5 1 2 . . . 4 3 . . . . . . . 3 . 2 1 1 . Recycler 25 | . . . . . . . . . 7 3 4 . . 3 2 . . . . 4 . . . . 1 . 1 . Carrier 4 | . . . . . . . . . . . . . . 1 1 . . . . 1 1 . . . . . . . Mechanic 3 | . . . . . . . . . . . . . . . . . . . . . . . . . . 1 2 . Operator 12 | . . . 2 . . . . 1 . 1 . . 2 2 . . . . . . 1 . . 1 . 1 1 . Watcher 20 | . . . . . . . . 1 . 2 3 . . 1 1 . . . . . 3 . . 3 2 2 2 . Swarmer 91 | . 3 6 6 . . . 7 6 1 3 6 . . 3 5 . . . 16 4 12 . . 8 . . 5 . Cutter 1 | . . . . . . . . . . . . . . . . . . . . 1 . . . . . . . . Saboteur 4 | . . . . . . . . . . . . . . . 1 . . 1 . . 2 . . . . . . . Grunt 160 | . 4 . 7 . . . 4 4 7 12 7 . . 16 5 . 8 8 7 18 13 . 10 5 5 8 12 . Brawler 17 | . . . . . . . 1 . 1 1 . . . 5 1 . . 2 . . 1 . . . . . 5 . Duelist 14 | . . . . . . . . . 1 1 . . . 2 1 . . 1 2 2 2 . . . . . 2 . Protector 10 | . . . . . . . . . 3 . . . . 4 1 . . . . . . . . . . . 2 . Researcher 11 | . . . . . . . . . . . . . . . . . . . . . . . . 3 . 4 4 . Sentry 71 | . . . 1 . . . 5 11 4 . 7 . 3 8 3 . . . 2 8 7 . 2 2 2 . 6 . Demolisher 2 | . . . . . . . . . . . . . . 1 . . . . . . 1 . . . . . . . Specialist 2 | . . . . . . . . . . . . . . . . . . . . 2 . . . . . . . . Hunter 45 | . . . . . . . 1 3 . . 3 . . 2 . . . . . 2 11 . 2 3 4 5 7 2 Programmer 23 | . . . . . . . . . 1 1 . . . . 4 . . 3 . 2 1 . . 2 . 5 4 . Heavy 5 | . . . . . . . . . . . . . . 1 1 . . . . 2 . . . . . . 1 . Behemoth 8 | . . . . . . . . . . . 2 . . . . 1 . . 1 . . . 1 . 1 . 2 . Cetus Guard 3 | . . . . . . . . . . . . 3 . . . . . . . . . . . . . . . . S7 Guard 2 | . . . . . . . . . . . . . . . . . . . . . . . . . . . 2 . Enhanced Grunt 4 | . . . . . . . . . . . . . . 4 . . . . . . . . . . . . . . Lightning 9 | . . . . . . . . . . . . . . 9 . . . . . . . . . . . . . . Tracker 6 | . . . . . . . . . . . . . . . . . . . . . . . . 1 . 2 3 . Combat Programmer 5 | . . . . . . . . . . . . . . . . . . . . . . . . 1 . 2 2 . Investigator 1 | . . . . . . . . . . . . . . . . . . . . . . . . . . . 1 . Striker 5 | . . . . . . . . . . . . . . . . . . 1 . . . . . . . . 4 . Executioner 1 | . . . . . . . . . . . . . . . . . . . . . . . . . . . 1 . Alpha 7 3 | . . . . . . . . . . . . . . . . . . . . . . . . 1 . . 2 . Protovariant G 1 | . . . . . . . . . . . . . . . . . . . . . . . . . . 1 . . Samaritan 1 | . . . . . . . . . . . . . . . . 1 . . . . . . . . . . . . Assembled 1 | . . . . 1 . . . . . . . . . . . . . . . . . . . . . . . . Thug 4 | . . . . . . . . . . . 3 . . . . . . 1 . . . . . . . . . . Butcher 3 | . . . . . . . . . . . 3 . . . . . . . . . . . . . . . . . Guerrilla 3 | . . . . . . . . . . . 3 . . . . . . . . . . . . . . . . . Best Kill Streak 17 | 1 4 3 5 1 . . 7 16 13 6 5 2 5 17 8 1 4 9 7 12 13 1 15 13 14 13 11 3 Combat Bots Only 12 | . 4 3 5 1 . . 6 6 11 5 5 2 3 9 5 1 4 9 7 9 12 1 8 12 7 8 9 3 Max Kills in Single Turn 4 | 1 2 1 1 1 . . 2 2 2 2 2 1 2 2 3 1 1 2 3 3 2 1 4 3 2 3 3 1 Gunslinging 1 | . 1 . . . . . 1 1 . . . . . . . . . . . . . . . . . . . . Exploded 2 | . . . . . . . . . . . . . . 2 2 . . . . 1 1 . 2 . 2 1 1 . Melee . | . . . . . . . . . . . . . . . . . . . . . . . . . . . . . Uniques/NPCs Destroyed 1 | . . . . . . . . . . . . . . . . . . . . . . 1 . . . . . . A5 (-4/Lab) Combat | -11 -10 -10 -9 -9 -9 -8 -8 -8 -8 -6 -6 -6 -6 -6 -5 -5 -5 -5 -4 -4 -4 -4 -3 -3 -2 -2 -2 -1 -------- Run | Jun Mat Min Mat Min Exi Min Mat Sto Rec Fac Ext Cet Arc Hub Fac Upp Upp War Pro Fac Arm Lab Res Qua Res Tes Sec Acc Damage Taken 14026 | . 180 91 571 47 . . 303 207 75 355 1690 79 28 1200 473 49 156 111 439 650 987 83 31 127 57 1487 3908 642 Core 11032 | . 158 72 469 42 . . 238 163 60 282 1337 59 25 929 367 38 117 85 346 507 755 67 24 94 41 1150 3080 527 Absorbed by Shields 4706 | . . . . . . . . . . . 11 75 . . . . 103 10 244 564 805 77 29 117 54 412 1571 634 Redirected to Core 9805 | . 64 56 329 18 . . 201 132 49 241 1195 59 12 827 358 38 105 85 310 421 706 56 17 80 41 1115 2869 421 Regen/Repaired (Parts) 705 | . . . . . . . . . . 9 142 8 . 77 49 4 18 9 12 10 65 42 . 11 . 101 148 . Core Remaining (%) 90 | 100 . 92 . . . 93 . . 100 . . . . 96 . . . . 100 . . 100 . 100 . . 36 . Volleys Fired 899 | 4 38 11 71 2 . . 33 37 41 33 66 6 6 78 33 3 11 16 25 56 67 13 17 36 18 61 105 12 Largest 6 | 2 2 2 2 2 . . 4 6 6 6 5 5 5 5 5 5 5 5 5 5 5 5 5 5 5 5 5 3 Hottest 900 | 60 60 40 40 40 . . 96 150 150 284 315 315 315 315 301 285 351 401 402 402 402 415 415 415 248 535 674 900 Shots Fired 3765 | 8 74 22 142 4 . . 132 210 207 172 330 30 30 375 165 15 55 72 118 268 314 61 74 167 86 186 430 18 Gun 2187 | 8 74 22 142 4 . . 132 210 207 119 197 21 24 235 61 6 17 14 48 141 179 29 34 70 36 79 78 . Cannon 1577 | . . . . . . . . . . 53 133 9 6 140 104 9 38 58 70 127 135 32 40 97 50 107 351 18 Launcher 1 | . . . . . . . . . . . . . . . . . . . . . . . . . . . 1 . Special . | . . . . . . . . . . . . . . . . . . . . . . . . . . . . . Kinetic 1790 | 4 54 22 142 4 . . 132 210 207 128 133 15 18 88 38 . . . . 76 179 29 22 13 36 75 161 4 Thermal 1636 | 4 20 . . . . . . . . 16 131 12 12 287 127 15 50 58 73 116 86 32 52 136 32 94 269 14 Explosive . | . . . . . . . . . . . . . . . . . . . . . . . . . . . . . Electromagnetic 339 | . . . . . . . . . . 28 66 3 . . . . 5 14 45 76 49 . . 18 18 17 . . Robot Hit Streak 103 | 8 23 6 29 2 . . 8 24 27 55 103 68 33 42 65 12 41 30 46 71 54 19 16 48 21 19 45 3 Robot Miss Streak 3 | . 3 1 3 1 . . 3 3 1 3 2 1 1 2 2 . 1 2 1 2 2 1 1 1 2 3 2 . Penetration Max 2 | . . . . . . . . . . . . . 1 . 1 . . . . 1 2 . 1 . 1 1 1 . Secondary Targets 26 | . 3 2 3 . . . 7 9 1 1 . . . . . . . . . . . . . . . . . . Max Gunslinging Chain 1 | . 1 1 1 . . . 1 1 1 1 . . . . . . . . . . . . . . . . . . Shots Hit Robots 2307 | 8 54 16 109 2 . . 83 130 127 113 256 28 23 261 98 9 43 45 61 161 160 16 36 58 50 99 259 2 Core Hits 1135 | 1 21 8 43 1 . . 36 56 51 67 111 13 14 170 49 3 14 25 32 72 80 7 27 30 29 56 117 2 Critical Kills 10 | . 1 . . . . . . . 2 1 . . . . . . . . . 1 1 . 1 3 . . . . Critical Parts Destroyed 6 | . . . 1 . . . 1 . 1 . 1 . . . . . . . . . . . . . . . 2 . Critical Strikes 32 | . 1 . 1 . . . 1 . 3 1 4 . . 5 3 . . . 2 3 2 . 1 3 . . 2 . Burn 16 | . . . . . . . . . . . 3 . . 5 3 . . . 2 2 1 . . . . . . . Meltdown 4 | . . . . . . . . . . . . . . . . . . . . . . . 1 3 . . . . Destroy 12 | . 1 . 1 . . . 1 . 3 1 1 . . . . . . . . 1 1 . . . . . 2 . Melee Attacks . | . . . . . . . . . . . . . . . . . . . . . . . . . . . . . Impact . | . . . . . . . . . . . . . . . . . . . . . . . . . . . . . Slashing . | . . . . . . . . . . . . . . . . . . . . . . . . . . . . . Piercing . | . . . . . . . . . . . . . . . . . . . . . . . . . . . . . Sneak Attacks . | . . . . . . . . . . . . . . . . . . . . . . . . . . . . . Combat Hostiles . | . . . . . . . . . . . . . . . . . . . . . . . . . . . . . Follow-up Attacks . | . . . . . . . . . . . . . . . . . . . . . . . . . . . . . Damage Inflicted 134224 | 72 478 137 884 15 . . 1334 2172 2338 2362 7254 1273 1034 13566 6485 616 2403 4275 4960 13265 12498 841 3684 5464 4989 9823 31699 303 Guns 43353 | 72 478 137 884 15 . . 1334 2172 2338 1650 4302 680 578 6286 1885 203 612 474 1049 4406 5130 328 1333 2403 1054 2137 1413 . Cannons 82608 | . . . . . . . . . . 712 2952 593 456 6326 4143 413 1791 3801 3911 8659 7075 513 2089 2772 3655 7267 25218 262 Explosions 8207 | . . . . . . . . . . . . . . 954 442 . . . . 200 293 . 262 289 280 419 5068 . Melee . | . . . . . . . . . . . . . . . . . . . . . . . . . . . . . Ramming 56 | . . . . . . . . . . . . . . . 15 . . . . . . . . . . . . 41 Kinetic 35623 | 27 305 137 884 15 . . 1334 2172 2338 1844 3066 872 745 2190 1570 . . . . 2716 6111 393 779 117 1054 1960 4994 . Thermal 88963 | 45 173 . . . . . . . . 157 2917 331 289 10769 4835 616 2122 3803 3869 8885 5574 448 2905 5005 2088 7165 26705 262 Explosive 262 | . . . . . . . . . . . . . . . 65 . . . . . 20 . . 123 54 . . . Electromagnetic 9320 | . . . . . . . . . . 361 1271 70 . 607 . . 281 472 1091 1664 793 . . 219 1793 698 . . Impact . | . . . . . . . . . . . . . . . . . . . . . . . . . . . . . Slashing . | . . . . . . . . . . . . . . . . . . . . . . . . . . . . . Piercing . | . . . . . . . . . . . . . . . . . . . . . . . . . . . . . Highest Corruption 10 | . . . . . . . . . 1 . . . . 10 . . . . . . 3 4 1 4 . 6 9 . Average Corruption 5 | . . . . . . . . . 1 . . . . 9 . . . . . . 2 3 1 1 . 5 7 . Corruption Purged . | . . . . . . . . . . . . . . . . . . . . . . . . . . . . . Corruption Blocked 35 | . . . . . . . . . . . . . . . . . . . . . . . . 15 . 20 . . Effects 95 | . . . . . . . . . 2 . . . . 30 . . . . . . 4 2 1 2 . 6 48 . Message Errors 20 | . . . . . . . . . . . . . . 4 . . . . . . 1 1 . . . 2 12 . Matter Fused 20 | . . . . . . . . . 1 . . . . 5 . . . . . . 1 . . . . . 13 . Heat Flow Errors 7 | . . . . . . . . . . . . . . 2 . . . . . . . . . 1 . 2 2 . Energy Discharges 12 | . . . . . . . . . . . . . . 5 . . . . . . . . . . . 1 6 . Parts Rejected 1 | . . . . . . . . . . . . . . . . . . . . . . . . . . . 1 . Data Loss (minor) 14 | . . . . . . . . . . . . . . 4 . . . . . . 2 1 1 1 . . 5 . Data Loss (major) 5 | . . . . . . . . . 1 . . . . 2 . . . . . . . . . . . 1 1 . Misdirections 1 | . . . . . . . . . . . . . . 1 . . . . . . . . . . . . . . Weapon Failures 15 | . . . . . . . . . . . . . . 7 . . . . . . . . . . . . 8 . Overload Shots . | . . . . . . . . . . . . . . . . . . . . . . . . . . . . . Overflow Damage 11257 | . . . . . . . . . . 2 110 80 23 590 260 . 185 504 603 1683 818 44 195 542 1058 1566 2968 26 Projectiles 10720 | . . . . . . . . . . 2 110 80 23 494 226 . 185 504 603 1653 774 44 195 440 1056 1471 2860 . Explosions 511 | . . . . . . . . . . . . . . 96 34 . . . . 30 44 . . 102 2 95 108 . Melee 26 | . . . . . . . . . . . . . . . . . . . . . . . . . . . . 26 Knockbacks 43 | . . . . . . . . . . 3 10 1 . 2 2 . . . . 3 7 . . . . . 14 1 Impact 1 | . . . . . . . . . . . . . . . . . . . . . . . . . . . . 1 Kinetic 38 | . . . . . . . . . . 2 10 1 . 1 2 . . . . 3 7 . . . . . 12 . Secondary 4 | . . . . . . . . . . 1 . . . 1 . . . . . . . . . . . . 2 . Self-Inflicted Damage 1386 | . . . . . . . . . . . . . . 88 68 . . . . . 99 . . . . . 1131 . Shots 8 | . . . . . . . . . . . . . . 3 1 . . . . . 2 . . . . . 2 . Rammed . | . . . . . . . . . . . . . . . . . . . . . . . . . . . . . Targets Rammed 4 | . . . . . . . . . . . . . . . 2 . . . . . . . . . . . . 2 Kicked 4 | . . . . . . . . . . . . . . . 2 . . . . . . . . . . . . 2 Crushed . | . . . . . . . . . . . . . . . . . . . . . . . . . . . . . Highest Temperature 690 | 20 135 10 43 4 . . 363 327 169 45 90 144 215 388 382 171 315 425 347 279 284 236 322 162 . 484 690 244 Average Temperature 96 | 15 46 4 11 3 . . 108 128 62 21 23 69 95 82 139 77 154 153 106 85 72 85 109 6 . 134 168 109 Received Heat Transfer 2271 | . 102 . 300 . . . 99 72 18 135 402 . . 177 96 . 85 75 163 149 156 . . . 12 45 173 12 Effects 23 | . . . . . . . 3 . . . . . . 1 1 . . 2 . 3 1 . . . . . 12 . Shutdowns 6 | . . . . . . . . . . . . . . 1 . . . 1 . . . . . . . . 4 . Energy Bleed 3 | . . . . . . . . . . . . . . . 1 . . . . . 1 . . . . . 1 . Interference 9 | . . . . . . . 3 . . . . . . . . . . . . 3 . . . . . . 3 . Short Circuit 2 | . . . . . . . . . . . . . . . . . . 1 . . . . . . . . 1 . Damage (minor) 1 | . . . . . . . . . . . . . . . . . . . . . . . . . . . 1 . Damage (major) 2 | . . . . . . . . . . . . . . . . . . . . . . . . . . . 2 . Siege Activations . | . . . . . . . . . . . . . . . . . . . . . . . . . . . . . Robots Corrupted 4 | . . . . . . . . . . . . . . 2 . . . . . . 1 . . . . 1 . . Combat Hostiles 3 | . . . . . . . . . . . . . . 1 . . . . . . 1 . . . . 1 . . Parts Fried 41 | . . . . . . . . . . . 2 . . 6 . . . 2 3 6 1 . . 1 12 5 . 3 Impact Corruptions 2 | . . . . . . . . . . . . . . . . . . . . . . . . . . . 1 1 Robots Melted 6 | . . . . . . . . . . . 1 . . . . . . . . . . . 1 3 . 1 . . Combat Hostiles 5 | . . . . . . . . . . . 1 . . . . . . . . . . . . 3 . 1 . . Parts Melted 82 | . 2 . . . . . . . . 1 15 . 2 14 7 . 2 5 1 6 . . 3 9 . 4 11 . Heat Transferred 41439 | 100 400 . . . . . . . . 298 5568 550 500 7861 2700 296 1184 1145 1517 3373 1507 92 905 2042 657 2379 8265 100 Parts Sabotaged 1 | . . . . . . . . . . . . . . 1 . . . . . . . . . . . . . . Parts Stolen . | . . . . . . . . . . . . . . . . . . . . . . . . . . . . . Parts Stripped . | . . . . . . . . . . . . . . . . . . . . . . . . . . . . . Power Chain Reactions 16 | . . . . . . . . . . . . . . 4 1 . . . . 1 1 . 1 1 1 2 4 . Missiles Intercepted . | . . . . . . . . . . . . . . . . . . . . . . . . . . . . . Alert | -11 -10 -10 -9 -9 -9 -8 -8 -8 -8 -6 -6 -6 -6 -6 -5 -5 -5 -5 -4 -4 -4 -4 -3 -3 -2 -2 -2 -1 ------- Run | Jun Mat Min Mat Min Exi Min Mat Sto Rec Fac Ext Cet Arc Hub Fac Upp Upp War Pro Fac Arm Lab Res Qua Res Tes Sec Acc Peak Influence 5460 | 5 223 228 840 271 . . 563 725 697 600 861 527 384 2318 1695 . . . . 1242 1968 . 474 1187 1160 789 5460 3710 Initial 2885 | . 2 73 75 211 . . . 202 239 179 169 133 177 111 1100 . . . . 110 524 . . 231 504 568 386 2885 Average 752 | 2 111 184 421 235 . . 239 460 452 276 497 302 330 1117 1248 . . . . 591 1219 . 287 828 815 523 1227 3333 Maximum Alert Level 5 | . 1 1 3 1 . . 2 3 2 2 3 2 1 5 5 . . . . 4 5 . 2 4 4 3 5 5 Low Security (%) 12 | 100 63 58 24 . . 100 47 . . 39 2 9 11 4 . . . . . 21 . . 21 . . 17 . . Level 1 19 | . 36 41 22 100 . . 37 33 42 46 22 66 88 8 . . . . . 3 . . 54 15 . 6 3 . Level 2 28 | . . . 34 . . . 15 52 57 14 62 24 . 20 . . . . . 40 20 . 23 8 42 57 23 . Level 3 19 | . . . 17 . . . . 14 . . 12 . . 14 24 . . . . 26 26 . . 70 48 19 47 . Level 4 9 | . . . . . . . . . . . . . . 20 68 . . . . 6 22 . . 5 8 . . . Level 5 5 | . . . . . . . . . . . . . . 24 6 . . . . . 31 . . . . . . 9 High Security . | . . . . . . . . . . . . . . 6 . . . . . . . . . . . . . . Max Security 3 | . . . . . . . . . . . . . . . . . . . . . . . . . . . 25 90 Squads Dispatched 105 | . . . 4 . . . 1 4 . 6 1 . . 11 6 . . . . 7 4 . . 3 2 7 34 15 Investigation 7 | . . . 1 . . . . 1 . 1 1 . . 1 . . . . . . 1 . . . 1 . . . Extermination 10 | . . . . . . . . . . 2 . . . . 2 . . . . 1 1 . . 1 . 1 2 . Reinforcement 26 | . . . 2 . . . 1 2 . 2 . . . 3 3 . . . . 4 . . . . 1 3 5 . Assault 43 | . . . 1 . . . . . . . . . . 4 1 . . . . 2 2 . . . . . 21 12 Garrison 8 | . . . . . . . . 1 . 1 . . . 3 . . . . . . . . . . . . . 3 Intercept 11 | . . . . . . . . . . . . . . . . . . . . . . . . 2 . 3 6 . Searches Triggered . | . . . . . . . . . . . . . . . . . . . . . . . . . . . . . Construction Impeded 3 | . . . . . . . 1 . . . . . . . . . . . . . . . . . . 1 1 . Haulers Reinforced 4 | . . . . . . . . . . 2 . . . . . . . . . . . . . . 1 . 1 . Active Scanning Responses . | . . . . . . . . . . . . . . . . . . . . . . . . . . . . . Cargo Convoy Interrupts 1 | . . . . . . . . . . . . . . . 1 . . . . . . . . . . . . . Stealth | -11 -10 -10 -9 -9 -9 -8 -8 -8 -8 -6 -6 -6 -6 -6 -5 -5 -5 -5 -4 -4 -4 -4 -3 -3 -2 -2 -2 -1 --------- Run | Jun Mat Min Mat Min Exi Min Mat Sto Rec Fac Ext Cet Arc Hub Fac Upp Upp War Pro Fac Arm Lab Res Qua Res Tes Sec Acc Distress Signals 29 | . . . 1 . . . 1 3 . 1 2 2 . 6 1 . . . . 1 . . 1 . 4 1 3 2 Communications Jammed . | . . . . . . . . . . . . . . . . . . . . . . . . . . . . . Distress Signals . | . . . . . . . . . . . . . . . . . . . . . . . . . . . . . Times Spotted 697 | . 12 5 34 17 . . 20 26 10 25 31 10 4 68 24 1 10 38 24 50 57 1 7 14 8 29 139 33 Peak Tracking Total 29 | . 5 3 4 15 . . 6 4 3 5 5 5 2 8 5 1 5 15 7 8 8 1 2 3 5 6 29 22 Tactical Retreats 35 | . . . . 4 . . . 1 . . 6 . . 1 2 . 2 1 . 4 6 . . . . 2 2 4 Traps | -11 -10 -10 -9 -9 -9 -8 -8 -8 -8 -6 -6 -6 -6 -6 -5 -5 -5 -5 -4 -4 -4 -4 -3 -3 -2 -2 -2 -1 ------- Run | Jun Mat Min Mat Min Exi Min Mat Sto Rec Fac Ext Cet Arc Hub Fac Upp Upp War Pro Fac Arm Lab Res Qua Res Tes Sec Acc Traps Triggered 22 | . 1 . . . . . . 3 . 4 2 . . 1 1 . . . . . 5 . 2 . 1 1 1 . Indirectly 1 | . . . . . . . . . . . . . . 1 . . . . . . . . . . . . . . Trap Hack Attempts . | . . . . . . . . . . . . . . . . . . . . . . . . . . . . . Triggered . | . . . . . . . . . . . . . . . . . . . . . . . . . . . . . Disarmed . | . . . . . . . . . . . . . . . . . . . . . . . . . . . . . Reprogrammed . | . . . . . . . . . . . . . . . . . . . . . . . . . . . . . Reused . | . . . . . . . . . . . . . . . . . . . . . . . . . . . . . Traps Extracted . | . . . . . . . . . . . . . . . . . . . . . . . . . . . . . Installed . | . . . . . . . . . . . . . . . . . . . . . . . . . . . . . Triggered 10 | . . . . . . . . . . . . . . . . . . 9 . 1 . . . . . . . . Machines | -11 -10 -10 -9 -9 -9 -8 -8 -8 -8 -6 -6 -6 -6 -6 -5 -5 -5 -5 -4 -4 -4 -4 -3 -3 -2 -2 -2 -1 ---------- Run | Jun Mat Min Mat Min Exi Min Mat Sto Rec Fac Ext Cet Arc Hub Fac Upp Upp War Pro Fac Arm Lab Res Qua Res Tes Sec Acc Machines Disabled 159 | . . . 1 . . . . 3 . 5 1 . 2 27 5 . . 1 . 9 13 4 . 11 3 15 56 3 Max in Single Turn 38 | . . . . . . . . 1 . 1 1 . 1 5 2 . . 1 . 2 2 1 . 2 2 2 38 . Garrison Access 8 | . . . . . . . . 1 . . . . . 2 . . . . . . . . . 1 2 1 1 . Network Hub 3 | . . . . . . . . . . . . . . 3 . . . . . . . . . . . . . . Energy Cycler 1 | . . . . . . . . . . . . . . . . . . . . . 1 . . . . . . . Machines Repaired . | . . . . . . . . . . . . . . . . . . . . . . . . . . . . . Machines Sabotaged . | . . . . . . . . . . . . . . . . . . . . . . . . . . . . . Overloaded Fab Kills . | . . . . . . . . . . . . . . . . . . . . . . . . . . . . . Hacking | -11 -10 -10 -9 -9 -9 -8 -8 -8 -8 -6 -6 -6 -6 -6 -5 -5 -5 -5 -4 -4 -4 -4 -3 -3 -2 -2 -2 -1 --------- Run | Jun Mat Min Mat Min Exi Min Mat Sto Rec Fac Ext Cet Arc Hub Fac Upp Upp War Pro Fac Arm Lab Res Qua Res Tes Sec Acc Machines Accessed 84 | . 3 . 4 . 1 . 1 9 6 7 11 1 . 5 2 . 1 . . 3 3 2 1 7 4 4 9 . Terminals 70 | . 3 . 4 . . . 1 8 5 6 11 1 . 3 2 . . . . 3 2 . 1 6 3 3 8 . Fabricators . | . . . . . . . . . . . . . . . . . . . . . . . . . . . . . Repair Stations 1 | . . . . . . . . . . . . . . . . . . . . . 1 . . . . . . . Recycling Units 1 | . . . . . . . . . 1 . . . . . . . . . . . . . . . . . . . Scanalyzers . | . . . . . . . . . . . . . . . . . . . . . . . . . . . . . Garrison Access 8 | . . . . . . . . 1 . 1 . . . 2 . . . . . . . . . 1 1 1 1 . Total Hacks 268 | . 6 . 11 . 15 . 3 19 15 15 28 1 . 10 11 . 1 . . 14 10 5 1 23 19 20 41 . Successful 134 | . 5 . 5 . 15 . 2 13 9 6 12 1 . . 3 . 1 . . 5 3 5 1 10 6 12 20 . Failed 134 | . 1 . 6 . . . 1 6 6 9 16 . . 10 8 . . . . 9 7 . . 13 13 8 21 . Catastrophic 22 | . . . . . . . . 2 . 2 2 . . 2 1 . . . . 2 1 . . 3 2 . 5 . Database Lockouts . | . . . . . . . . . . . . . . . . . . . . . . . . . . . . . Manual 146 | . 5 . 10 . . . 3 12 10 9 18 1 . 6 11 . . . . 14 6 . . 6 9 6 20 . Terminals 221 | . 6 . 11 . . . 3 16 13 12 28 1 . 6 11 . . . . 14 6 . 1 19 17 17 40 . Fabricators . | . . . . . . . . . . . . . . . . . . . . . . . . . . . . . Repair Stations 4 | . . . . . . . . . . . . . . . . . . . . . 4 . . . . . . . Recycling Units 2 | . . . . . . . . . 2 . . . . . . . . . . . . . . . . . . . Scanalyzers . | . . . . . . . . . . . . . . . . . . . . . . . . . . . . . Garrison Access 20 | . . . . . . . . 3 . 3 . . . 4 . . . . . . . . . 4 2 3 1 . Terminal Hacks 79 | . 2 . 1 . 15 . 1 7 3 2 6 1 . . 2 . 1 . . 2 . 5 1 6 3 8 13 . Record 23 | . . . . . 15 . . . . . . . . . . . . . . . . 4 . 1 2 . 1 . Part Schematic 1 | . . . . . . . . . . . . . . . . . . . . . . . . 1 . . . . Prototype ID Bank 1 | . . . . . . . . . . . . . . . . . . . . . . . . . . . 1 . Open Door 11 | . . . . . . . . 2 . 1 3 1 . . . . 1 . . . . . . 2 . . 1 . Level Access Points 2 | . . . . . . . . . 1 . . . . . . . . . . . . . . 1 . . . . Branch Access Points 10 | . 1 . 1 . . . 1 1 2 . . . . . 1 . . . . 1 . . 1 . 1 . . . Emergency Access Points 1 | . . . . . . . . . . . . . . . . . . . . . . . . . . . 1 . Recycling Unit Index 1 | . . . . . . . . . . . . . . . . . . . . . . . . . . . 1 . Alert Level 4 | . 1 . . . . . . 1 . . 1 . . . . . . . . . . . . . . 1 . . Unreport Threat 16 | . . . . . . . . 2 . . 2 . . . 1 . . . . 1 . . . . . 6 4 . Locate Traps 1 | . . . . . . . . 1 . . . . . . . . . . . . . . . . . . . . Maintenance Status 1 | . . . . . . . . . . . . . . . . . . . . . . . . . . . 1 . Surveillance Status 1 | . . . . . . . . . . . . . . . . . . . . . . . . . . . 1 . Zone Layout 4 | . . . . . . . . . . 1 . . . . . . . . . . . . . 1 . 1 1 . Activate Exoskeleton 1 | . . . . . . . . . . . . . . . . . . . . . . . . . . . 1 . Release Object 1 | . . . . . . . . . . . . . . . . . . . . . . 1 . . . . . . Fabricator Hacks . | . . . . . . . . . . . . . . . . . . . . . . . . . . . . . Repair Station Hacks 2 | . . . . . . . . . . . . . . . . . . . . . 2 . . . . . . . Scan Component 1 | . . . . . . . . . . . . . . . . . . . . . 1 . . . . . . . Repair 1 | . . . . . . . . . . . . . . . . . . . . . 1 . . . . . . . Recycling Unit Hacks 1 | . . . . . . . . . 1 . . . . . . . . . . . . . . . . . . . Retrieve Components 1 | . . . . . . . . . 1 . . . . . . . . . . . . . . . . . . . Scanalyzer . | . . . . . . . . . . . . . . . . . . . . . . . . . . . . . Garrison Access Hacks 5 | . . . . . . . . 1 . . . . . . . . . . . . . . . 1 1 1 1 . Seal Access 5 | . . . . . . . . 1 . . . . . . . . . . . . . . . 1 1 1 1 . Unauthorized Hacks 47 | . 3 . 4 . . . 1 5 5 4 6 . . . 1 . . . . 3 1 . . 3 2 3 6 . Terminals 47 | . 3 . 4 . . . 1 5 5 4 6 . . . 1 . . . . 3 1 . . 3 2 3 6 . Botnet 47 | . 3 . 4 . . . 1 5 5 4 6 . . . 1 . . . . 3 1 . . 3 2 3 6 . Fabricators . | . . . . . . . . . . . . . . . . . . . . . . . . . . . . . Repair Stations . | . . . . . . . . . . . . . . . . . . . . . . . . . . . . . Recycling Units . | . . . . . . . . . . . . . . . . . . . . . . . . . . . . . Scanalyzers . | . . . . . . . . . . . . . . . . . . . . . . . . . . . . . Garrison Access . | . . . . . . . . . . . . . . . . . . . . . . . . . . . . . Data Cores Recovered 5 | . . . . . . . . 1 . 1 . . . . . . . . . . 1 . . 1 . 1 . . Used 1 | . . . . . . . . 1 . . . . . . . . . . . . . . . . . . . . Hacking Detections 56 | . 2 . 4 . . . . 6 3 5 9 . . 5 2 . . . . 3 2 . . 5 3 2 5 . Full Trace Events 5 | . . . 1 . . . . . . 1 1 . . 1 . . . . . . . . . . 1 . . . Feedback Events . | . . . . . . . . . . . . . . . . . . . . . . . . . . . . . Feedback Blocked . | . . . . . . . . . . . . . . . . . . . . . . . . . . . . . Robot Schematics Acquired 9 | . . . . . . . . . . . . . . . . . . . . . . . . 3 . 5 1 . Robots Built . | . . . . . . . . . . . . . . . . . . . . . . . . . . . . . Authchips . | . . . . . . . . . . . . . . . . . . . . . . . . . . . . . Time . | . . . . . . . . . . . . . . . . . . . . . . . . . . . . . Total Robot Build Rating . | . . . . . . . . . . . . . . . . . . . . . . . . . . . . . Part Schematics Acquired 25 | . . . . . . . . . . . . . . . . . . . . . . . . 9 . 5 11 . Parts Built . | . . . . . . . . . . . . . . . . . . . . . . . . . . . . . Authchips . | . . . . . . . . . . . . . . . . . . . . . . . . . . . . . Time . | . . . . . . . . . . . . . . . . . . . . . . . . . . . . . Total Part Build Rating . | . . . . . . . . . . . . . . . . . . . . . . . . . . . . . Parts Repaired 1 | . . . . . . . . . . . . . . . . . . . . . 1 . . . . . . . Time 68 | . . . . . . . . . . . . . . . . . . . . . 68 . . . . . . . Parts Recycled . | . . . . . . . . . . . . . . . . . . . . . . . . . . . . . Recycled Matter . | . . . . . . . . . . . . . . . . . . . . . . . . . . . . . Retrieved Matter . | . . . . . . . . . . . . . . . . . . . . . . . . . . . . . Retrieved Components . | . . . . . . . . . . . . . . . . . . . . . . . . . . . . . Parts Scanalyzed . | . . . . . . . . . . . . . . . . . . . . . . . . . . . . . Part Schematics Acquired . | . . . . . . . . . . . . . . . . . . . . . . . . . . . . . Parts Damaged . | . . . . . . . . . . . . . . . . . . . . . . . . . . . . . Bothacking | -11 -10 -10 -9 -9 -9 -8 -8 -8 -8 -6 -6 -6 -6 -6 -5 -5 -5 -5 -4 -4 -4 -4 -3 -3 -2 -2 -2 -1 ------------ Run | Jun Mat Min Mat Min Exi Min Mat Sto Rec Fac Ext Cet Arc Hub Fac Upp Upp War Pro Fac Arm Lab Res Qua Res Tes Sec Acc Used RIF Installer . | . . . . . . . . . . . . . . . . . . . . . . . . . . . . . Robots Hacked . | . . . . . . . . . . . . . . . . . . . . . . . . . . . . . Non-combat . | . . . . . . . . . . . . . . . . . . . . . . . . . . . . . Combat . | . . . . . . . . . . . . . . . . . . . . . . . . . . . . . Robot Hacks Applied . | . . . . . . . . . . . . . . . . . . . . . . . . . . . . . Relay Couplers Released 2 | . . . . . . . . . . . . . . 1 . . . . . . . . . . 1 . . . Machine Destruction 2 | . . . . . . . . . . . . . . 1 . . . . . . . . . . 1 . . . Fabnet Peak Effective % . | . . . . . . . . . . . . . . . . . . . . . . . . . . . . . Robots Rewired . | . . . . . . . . . . . . . . . . . . . . . . . . . . . . . Allies Hacked . | . . . . . . . . . . . . . . . . . . . . . . . . . . . . . Hacks Repelled . | . . . . . . . . . . . . . . . . . . . . . . . . . . . . . Allies | -11 -10 -10 -9 -9 -9 -8 -8 -8 -8 -6 -6 -6 -6 -6 -5 -5 -5 -5 -4 -4 -4 -4 -3 -3 -2 -2 -2 -1 -------- Run | Jun Mat Min Mat Min Exi Min Mat Sto Rec Fac Ext Cet Arc Hub Fac Upp Upp War Pro Fac Arm Lab Res Qua Res Tes Sec Acc Total Allies 32 | . . 3 . . . . . 10 . . 4 5 . . . . . . . . . . . . 3 . 1 6 Largest Group 10 | . . 3 3 . . . . 10 5 4 3 6 6 5 . . . . . . . . . . 3 . 1 4 Highest-Rated Group 1244 | . . 40 40 . . . . 173 80 64 218 582 582 423 . . . . . . . . . . 138 . 1201 1244 Highest-Rated Ally 1201 | . . 16 16 . . . . 29 16 16 159 159 159 96 . . . . . . . . . . 46 . 1201 1201 Total Orders 1 | . . . . . . . . 1 . . . . . . . . . . . . . . . . . . . . EXPLORE 1 | . . . . . . . . 1 . . . . . . . . . . . . . . . . . . . . Ally Attacks 300 | . . . 52 . . . . . 8 42 4 49 18 19 . . . . . . . . . . 2 . 90 16 Total Damage 18833 | . . . 564 . . . . . 122 461 41 1386 424 951 . . . . . . . . . . 24 . 12517 2343 Kills 96 | . . . 14 . . . . . 1 4 . 13 1 7 . . . . . . . . . . . . 47 9 Allies Corrupted 4 | . . . . . . . . 2 . 1 . . . 1 . . . . . . . . . . . . . . Allies Melted 1 | . . . . . . . . . . . . . . . . . . . . . . . . . 1 . . . Intel | -11 -10 -10 -9 -9 -9 -8 -8 -8 -8 -6 -6 -6 -6 -6 -5 -5 -5 -5 -4 -4 -4 -4 -3 -3 -2 -2 -2 -1 ------- Run | Jun Mat Min Mat Min Exi Min Mat Sto Rec Fac Ext Cet Arc Hub Fac Upp Upp War Pro Fac Arm Lab Res Qua Res Tes Sec Acc Robot Analysis Total . | . . . . . . . . . . . . . . . . . . . . . . . . . . . . . Derelict Logs Recovered 9 | . . 2 . 1 . . . . . . . . . . . 1 3 . 2 . . . . . . . . . Drone Launches 12 | . . . . . . . . 12 . . . . . . . . . . . . . . . . . . . . Drone Recoveries 2 | . . . . . . . . 2 . . . . . . . . . . . . . . . . . . . . Exploration | -11 -10 -10 -9 -9 -9 -8 -8 -8 -8 -6 -6 -6 -6 -6 -5 -5 -5 -5 -4 -4 -4 -4 -3 -3 -2 -2 -2 -1 ------------- Run | Jun Mat Min Mat Min Exi Min Mat Sto Rec Fac Ext Cet Arc Hub Fac Upp Upp War Pro Fac Arm Lab Res Qua Res Tes Sec Acc Turns Passed 14244 | 65 274 217 413 185 46 33 259 369 475 817 1349 339 93 1067 878 552 563 776 801 771 982 199 142 490 167 567 1234 121 Spaces Moved 12660 | 39 349 437 416 320 125 89 321 499 628 696 912 181 46 497 533 407 353 368 501 392 661 216 181 762 292 843 1364 232 Core 13 | 2 . . . . . . . . 4 . . . . . . . . . . . . . . 3 . 4 . . Treads 1419 | . . . . . . . . . . . 263 17 46 222 32 . 69 283 . 117 248 122 . . . . . . Legs 4589 | 37 32 . . . . . . . 2 . 328 164 . 275 501 407 284 23 . . . . . 179 292 469 1364 232 Wheels 439 | . . . . . . . . . 34 405 . . . . . . . . . . . . . . . . . . Hover 1326 | . . . . . . . . . . . . . . . . . . 62 501 275 413 75 . . . . . . Flight 4874 | . 317 437 416 320 125 89 321 499 588 291 321 . . . . . . . . . . 19 181 580 . 370 . . Fastest Speed 26 | 50 37 37 37 37 37 37 26 26 26 73 73 142 142 133 133 133 133 86 86 136 58 35 35 30 30 30 30 30 Average Speed 74 | 116 44 37 37 37 37 37 27 27 34 89 107 142 142 141 133 133 145 184 135 136 94 55 35 34 30 34 37 34 Slowest Speed 500 | 120 120 37 37 37 37 37 37 96 190 157 142 142 142 162 133 133 199 199 136 136 136 58 35 500 30 500 77 77 Overloaded Moves . | . . . . . . . . . . . . . . . . . . . . . . . . . . . . . Propulsion Burnouts . | . . . . . . . . . . . . . . . . . . . . . . . . . . . . . Robots Hopped 24 | . 1 2 2 1 . . 3 2 . 6 1 . . . . . . . . . . . . 3 . 3 . . Cave-ins Triggered 4 | . . . . . . . . . . . . . . . . . . . . . . . . . . . . 4 Exploration Rate (%) 55 | 3 78 90 58 73 47 40 31 86 89 20 83 65 67 64 22 67 59 57 71 18 55 99 10 86 11 67 86 11 Regions Visited 28 Branch Regions 19 Pre-discovered Areas 2 | . . . . . 1 . . . . . . . . . . . . . 1 . . . . . . . . . Known Exits Taken 15 | . 1 . 1 1 1 1 1 1 1 . . . . 1 1 . 1 . . 1 . . 1 1 1 . . . Unknown Exits Taken 13 | 1 . 1 . . . . . . . 1 1 1 1 . . 1 . 1 1 . 1 1 . . . 1 1 . Scrap Searched 8 | . . 1 . 1 . 2 . . . . . . . . . 1 2 . 1 . . . . . . . . . Spaces Dug 241 | . . . . . . . . . . . . . . . . . . . . 14 6 8 4 6 . 5 12 186 Terrain Destroyed 2280 | . . . . . . . . 19 . 12 22 1 7 563 94 3 8 7 27 58 155 37 28 89 81 92 790 187 Melee . | . . . . . . . . . . . . . . . . . . . . . . . . . . . . . Projectile 823 | . . . . . . . . . . 12 22 1 7 55 38 3 8 7 27 54 117 37 23 55 35 61 74 187 AOE 1457 | . . . . . . . . 19 . . . . . 508 56 . . . . 4 38 . 5 34 46 31 716 . Terrain Rammed . | . . . . . . . . . . . . . . . . . . . . . . . . . . . . . Walls Destroyed . | . . . . . . . . . . . . . . . . . . . . . . . . . . . . . Machines Disabled . | . . . . . . . . . . . . . . . . . . . . . . . . . . . . . Actions | -11 -10 -10 -9 -9 -9 -8 -8 -8 -8 -6 -6 -6 -6 -6 -5 -5 -5 -5 -4 -4 -4 -4 -3 -3 -2 -2 -2 -1 --------- Run | Jun Mat Min Mat Min Exi Min Mat Sto Rec Fac Ext Cet Arc Hub Fac Upp Upp War Pro Fac Arm Lab Res Qua Res Tes Sec Acc Total 15315 | 48 401 472 558 381 124 88 416 664 814 811 1104 248 58 657 615 410 372 425 557 484 845 261 216 897 323 986 1832 248 Wait 936 | . . 23 38 61 . . 21 60 128 66 34 42 7 17 13 1 . 20 8 6 68 5 16 84 8 51 158 1 Move 12580 | 38 346 432 411 317 124 88 314 494 627 683 909 180 45 496 532 406 352 367 500 391 660 215 180 755 291 836 1363 228 Hop 24 | . 1 2 2 1 . . 3 2 . 6 1 . . . . . . . . . . . . 3 . 3 . . Pick Up 34 | . 4 . . . . . 1 3 1 . 4 6 . 3 1 . 1 1 1 . 2 2 . 3 . . 1 . Fast Attach 76 | 6 3 . 1 . . . 7 3 2 3 . . . 4 6 . . 6 . . 5 7 . 2 2 5 14 . Attach 9 | . . . . . . . 3 2 . . . . . . . . . . . . 1 . . 1 . . 1 1 Detach 2 | . . . . . . . . . 1 . . . . . . . . 1 . . . . . . . . . . Swap 12 | . . . . . . . 6 3 . . . . . . . . 1 1 . . . . . 1 . . . . Drop 92 | . 3 . . . . . 9 5 7 5 8 2 . 5 7 . 1 6 1 . 2 8 . 4 2 5 11 1 Fire 899 | 4 38 11 71 2 . . 33 37 41 33 66 6 6 78 33 3 11 16 25 56 67 13 17 36 18 61 105 12 Melee . | . . . . . . . . . . . . . . . . . . . . . . . . . . . . . Ram . | . . . . . . . . . . . . . . . . . . . . . . . . . . . . . Kick 4 | . . . . . . . . . . . . . . . 2 . . . . . . . . . . . . 2 Crush . | . . . . . . . . . . . . . . . . . . . . . . . . . . . . . Escape Stasis 63 | . . . . . . . . 36 . . 24 . . . . . . . . . . . . . . . . 3 Rewire . | . . . . . . . . . . . . . . . . . . . . . . . . . . . . . Trap . | . . . . . . . . . . . . . . . . . . . . . . . . . . . . . Miscellaneous 584 | . 6 4 35 . . . 19 19 7 15 58 12 . 54 21 . 6 7 22 31 40 11 3 8 2 25 179 . Route ------- -11/Junkyard -10/Materials (discovered 4 exits: *Mat x3 / *Min) -10/Mines (discovered 2 exits: *Mat x2) -9/Materials (discovered 2 exits: *Min x2) -9/Mines -9/Exiles -8/Mines -8/Materials -8/Storage (discovered 2 exits: [*Fac] / *Rec) -8/Recycling -6/Factory (discovered 4 exits: *Fac x2 / Low / *Ext) -6/Extension (discovered 2 exits: *Fac / *Cet) -6/Cetus (discovered 2 exits: *Fac / [*Arc]) -6/Archives (discovered 2 exits: *Fac / *Hub) -6/Hub_04(d) (discovered 3 exits: *Fac x3) -5/Factory (discovered 4 exits: *Fac x2 / *Upp x2) -5/Upper Caves -5/Upper Caves -5/Warlord -4/Proximity Caves -4/Factory (discovered 4 exits: *Res / *Upp x2 / *Arm) -4/Armory -4/Lab -3/Research (discovered 2 exits: *Qua x2) -3/Quarantine -2/Research (discovered 2 exits: *Tes x2) -2/Testing (discovered 2 exits: [*Acc] / *Sec) -2/Section 7 -1/Access History --------- Turn | Location | Event 1 | -11/Junkyard | Upgraded with Propulsion slot (x1) 1 | -11/Junkyard | Upgraded with Utility slot (x1) 1 | -11/Junkyard | Upgraded with Weapon slot (x1) 2 | -11/Junkyard | Met Revision 17 14 | -11/Junkyard | Discovered new exit (range 15) 66 | -11/Junkyard | Entered Materials 128 | -10/Materials | Discovered new exit (range 6) 157 | -10/Materials | Discovered new exit (range 12) 158 | -10/Materials | Identified exit to Mines 300 | -10/Materials | Discovered new exit (range 10) 314 | -10/Materials | Build established: Mutant 340 | -10/Materials | Entered Mines 342 | -10/Mines | Reached level 2 363 | -10/Mines | Discovered new exit (range 12) 367 | -10/Mines | Discovered new exit (range 7) 369 | -10/Mines | Learned Materials non-interactive machine intel 403 | -10/Mines | Found a hidden stash of uninstalled traps 442 | -10/Mines | Met a Derelict bent on vengeance 519 | -10/Mines | Assisted by bots powering up and referring to "LRC-V3" 557 | -10/Mines | Entered Materials 557 | -9/Materials | Accompanied by 3 allies 558 | -9/Materials | Identified exit to Mines 559 | -9/Materials | Loaded intel: 42 non-interactive machine locations 559 | -9/Materials | Reached level 3 559 | -9/Materials | Reached level 4 726 | -9/Materials | Reached level 5 876 | -9/Materials | Reached level 6 957 | -9/Materials | First assault squad dispatched 970 | -9/Materials | Entered Mines 985 | -9/Mines | YI-UF0 nonchalantly dropped a Grenade Launcher on the ground 993 | -9/Mines | Assembled infested the area 1152 | -9/Mines | Deemed a non-threat by the Exiles lab entrance 1153 | -9/Mines | Discovered new exit (range 5) 1154 | -9/Mines | Identified exit to Exiles 1155 | -9/Mines | Entered Exiles 1157 | -9/Exiles | Reached level 7 1164 | -9/Exiles | Met 8R-AWN 1171 | -9/Exiles | Met EX-HEX 1185 | -9/Exiles | Met EX-DEC 1187 | -9/Exiles | Learned location of Zion (-7) 1198 | -9/Exiles | Discovered new exit (range 10) 1201 | -9/Exiles | Identified exit to Mines 1201 | -9/Exiles | Entered Mines 1229 | -8/Mines | Discovered new exit (range 9) 1234 | -8/Mines | Identified exit to Materials 1234 | -8/Mines | Entered Materials 1236 | -8/Materials | Reached level 8 1239 | -8/Materials | Upgraded with Propulsion slot (x2) 1239 | -8/Materials | Upgraded with Utility slot (x2) 1239 | -8/Materials | Upgraded with Weapon slot (x2) 1315 | -8/Materials | Reached level 9 1444 | -8/Materials | Identified exit to Storage 1485 | -8/Materials | Reached level 10 1493 | -8/Materials | Entered Storage 1548 | -8/Storage | Upgraded with Utility slot (x2) 1548 | -8/Storage | Upgraded with Weapon slot (x2) 1561 | -8/Storage | Reached level 11 1570 | -8/Storage | Build established: Sprinter 1598 | -8/Storage | Garrison activated, responded to threat 1713 | -8/Storage | Discovered new exit (range 47) 1745 | -8/Storage | Reached level 12 1775 | -8/Storage | Identified exit to Recycling 1852 | -8/Storage | Assisted by bots powering up and referring to "LRC-V3" 1862 | -8/Storage | Entered Recycling 1862 | -8/Recycling | Accompanied by 5 allies 1865 | -8/Recycling | Found Scrap Engine 1903 | -8/Recycling | Identified exit to Factory 2133 | -8/Recycling | Reached level 13 2147 | -8/Recycling | Build established: Commander-Sprinter 2187 | -8/Recycling | Destroyed 11 combat bots 2337 | -8/Recycling | Entered Factory 2337 | -6/Factory | Accompanied by 4 allies 2338 | -6/Factory | Identified exit to Lower Caves 2339 | -6/Factory | Reached level 14 2441 | -6/Factory | Discovered new exit (range 5) 2447 | -6/Factory | Identified exit to Factory 2550 | -6/Factory | Build established: Commander-Executioner 2577 | -6/Factory | Garrison activated, responded to threat 2820 | -6/Factory | Reached level 15 3097 | -6/Factory | Reached level 16 3124 | -6/Factory | Discovered exit to Factory (range 9) 3146 | -6/Factory | Discovered new exit (range 6) 3154 | -6/Factory | Entered Extension 3187 | -6/Extension | Reached level 17 3204 | -6/Extension | Disrupted transfer network 3240 | -6/Extension | Rescued a captive Derelict 3257 | -6/Extension | Upgraded with Power slot (x1) 3259 | -6/Extension | Build established: Construct 3535 | -6/Extension | Spotted B-75 Beast 3539 | -6/Extension | Spotted B-75 Beast 3555 | -6/Extension | Reached level 18 3611 | -6/Extension | Destroyed B-75 Beast 3613 | -6/Extension | Core integrity fell below 50% 3630 | -6/Extension | Core integrity fell below 20% 3711 | -6/Extension | Destroyed B-75 Beast 4040 | -6/Extension | Rescued a captive Derelict 4042 | -6/Extension | Rescued a captive Derelict 4098 | -6/Extension | Discovered exit to Factory (range 10) 4099 | -6/Extension | Discovered new exit (range 6) 4311 | -6/Extension | Rescued A7 4503 | -6/Extension | Entered Cetus 4503 | -6/Cetus | Accompanied by 2 allies (A7) 4508 | -6/Cetus | Acquired a Cetus Manufacturing Module code from A7 4523 | -6/Cetus | Spotted Cetus Guard 4523 | -6/Cetus | Spotted Cetus Guard 4525 | -6/Cetus | Allies destroyed Cetus Guard 4526 | -6/Cetus | Spotted Cetus Guard 4527 | -6/Cetus | Destroyed Cetus Guard 4527 | -6/Cetus | Spotted Cetus Guard 4534 | -6/Cetus | Allies destroyed Cetus Guard 4536 | -6/Cetus | Allies destroyed Cetus Guard 4619 | -6/Cetus | Started Cetus Manufacturing Module 4628 | -6/Cetus | Escorted A7 to Cetus Mainframe 4644 | -6/Cetus | Manufactured an Enhanced Grunt 4669 | -6/Cetus | Manufactured an Enhanced Grunt 4690 | -6/Cetus | Discovered new exit (range 15) 4694 | -6/Cetus | Manufactured an Enhanced Grunt 4716 | -6/Cetus | Spotted Cetus Guard 4716 | -6/Cetus | Spotted Cetus Guard 4719 | -6/Cetus | Manufactured an Enhanced Grunt 4719 | -6/Cetus | Reached level 19 4719 | -6/Cetus | Destroyed Cetus Guard 4720 | -6/Cetus | Spotted Cetus Guard 4720 | -6/Cetus | Allies destroyed Cetus Guard 4721 | -6/Cetus | Spotted Cetus Guard 4723 | -6/Cetus | Destroyed Cetus Guard 4731 | -6/Cetus | Allies destroyed Cetus Guard 4744 | -6/Cetus | Manufactured an Enhanced Grunt 4746 | -6/Cetus | Discovered exit to Factory (range 16) 4755 | -6/Cetus | Met Revision 17 4842 | -6/Cetus | Entered Archives 4842 | -6/Archives | Accompanied by 6 allies (A7) 4847 | -6/Archives | Received a hacking code to weaken MAIN.C 4894 | -6/Archives | Discovered exit to Factory (range 15) 4910 | -6/Archives | Discovered new exit (range 14) 4935 | -6/Archives | Entered Hub_04(d) 4935 | -6/Hub_04(d) | Accompanied by 5 allies 4982 | -6/Hub_04(d) | Reached level 20 5036 | -6/Hub_04(d) | Build established: Commander-Construct 5077 | -6/Hub_04(d) | Discovered exit to Factory (range 15) 5341 | -6/Hub_04(d) | Garrison activated, responded to threat 5362 | -6/Hub_04(d) | Destroyed 7 combat bots 5406 | -6/Hub_04(d) | Upgraded with Weapon slot (x1) 5414 | -6/Hub_04(d) | Network Hub disabled 5418 | -6/Hub_04(d) | Spotted Lightning 5418 | -6/Hub_04(d) | Destroyed Lightning 5419 | -6/Hub_04(d) | Spotted Lightning 5420 | -6/Hub_04(d) | Spotted Lightning 5423 | -6/Hub_04(d) | Spotted Lightning 5425 | -6/Hub_04(d) | Destroyed Lightning 5433 | -6/Hub_04(d) | Destroyed Lightning 5436 | -6/Hub_04(d) | Destroyed Lightning 5441 | -6/Hub_04(d) | System corruption reached 10% 5443 | -6/Hub_04(d) | Spotted Lightning 5443 | -6/Hub_04(d) | Destroyed Lightning 5447 | -6/Hub_04(d) | Discovered exit to Factory (range 7) 5450 | -6/Hub_04(d) | Spotted Lightning 5456 | -6/Hub_04(d) | Destroyed Lightning 5477 | -6/Hub_04(d) | Destroyed 7 combat bots 5516 | -6/Hub_04(d) | Found Prototype Device 5516 | -6/Hub_04(d) | Identified Exp. EM Disruption Field 5556 | -6/Hub_04(d) | Build established: Construct 5564 | -6/Hub_04(d) | Reached level 21 5635 | -6/Hub_04(d) | First assault squad dispatched 5723 | -6/Hub_04(d) | Destroyed 9 combat bots 5745 | -6/Hub_04(d) | Discovered exit to Factory (range 3) 5832 | -6/Hub_04(d) | Network Hub disabled 5906 | -6/Hub_04(d) | Spotted Lightning 5906 | -6/Hub_04(d) | Spotted Lightning 5913 | -6/Hub_04(d) | Spotted Lightning 5920 | -6/Hub_04(d) | Destroyed Lightning 5920 | -6/Hub_04(d) | Network Hub disabled 5923 | -6/Hub_04(d) | Destroyed Lightning 5935 | -6/Hub_04(d) | High security lockdown imminent 5953 | -6/Hub_04(d) | Destroyed Lightning 5974 | -6/Hub_04(d) | Destroyed 7 combat bots 6002 | -6/Hub_04(d) | Entered Factory 6004 | -5/Factory | Reached level 22 6069 | -5/Factory | Identified exit to Upper Caves 6355 | -5/Factory | Upgraded with Weapon slot (x1) 6392 | -5/Factory | Discovered new exit (range 10) 6572 | -5/Factory | Cargo convoy interrupted 6598 | -5/Factory | Found Prototype Device 6598 | -5/Factory | Identified Exp. ECM Suite 6602 | -5/Factory | First assault squad dispatched 6609 | -5/Factory | Found Prototype Processor 6609 | -5/Factory | Identified Exp. Melee Analysis Suite 6804 | -5/Factory | Discovered new exit (range 5) 6880 | -5/Factory | Entered Upper Caves 7069 | -5/Upper Caves | Spotted B-75 Beast 7077 | -5/Upper Caves | Destroyed B-75 Beast 7285 | -5/Upper Caves | Discovered new exit (range 7) 7432 | -5/Upper Caves | Entered another Upper Caves area 7434 | -5/Upper Caves | Reached level 23 7941 | -5/Upper Caves | Learned Factory stockpile data 7947 | -5/Upper Caves | Identified exit to Warlord 7995 | -5/Upper Caves | Entered Warlord 8372 | -5/Warlord | Met Warlord 8397 | -5/Warlord | Warlord's base attacked by MAIN.C 8418 | -5/Warlord | Found Prototype Device 8418 | -5/Warlord | Identified Exp. Cloaking Device 8456 | -5/Warlord | Found Prototype Device 8456 | -5/Warlord | Identified Thermal Barrier 8625 | -5/Warlord | Warlord forces counterattacked 8697 | -5/Warlord | Destroyed 9 combat bots 8729 | -5/Warlord | Discovered new exit (range 14) 8732 | -5/Warlord | Spotted Striker 8734 | -5/Warlord | Destroyed Striker 8735 | -5/Warlord | Spotted Striker 8766 | -5/Warlord | Destroyed 7 combat bots 8771 | -5/Warlord | Entered Proximity Caves 8773 | -4/Proximity Caves | Reached level 24 8847 | -4/Proximity Caves | Attracted the attention of an 0b10 outpost 8888 | -4/Proximity Caves | Destroyed 7 combat bots 8970 | -4/Proximity Caves | Attracted the attention of an 0b10 checkpoint 9265 | -4/Proximity Caves | Spotted B-86 Titan 9270 | -4/Proximity Caves | Destroyed B-86 Titan 9432 | -4/Proximity Caves | Discovered new exit (range 20) 9441 | -4/Proximity Caves | Reached level 25 9554 | -4/Proximity Caves | Learned Research emergency access door positions 9572 | -4/Proximity Caves | Entered Factory 9573 | -4/Factory | Identified exit to Armory 9675 | -4/Factory | Discovered new exit (range 12) 9740 | -4/Factory | Discovered new exit (range 12) 9795 | -4/Factory | Destroyed 8 combat bots 9822 | -4/Factory | First assault squad dispatched 9977 | -4/Factory | Reached level 26 10095 | -4/Factory | Identified exit to Upper Caves 10338 | -4/Factory | Destroyed 9 combat bots 10343 | -4/Factory | Entered Armory 10375 | -4/Armory | Upgraded with Utility slot (x1) 10375 | -4/Armory | Upgraded with Weapon slot (x1) 10561 | -4/Armory | Repaired Broken Exp. EM Disruption Field 10634 | -4/Armory | Destroyed 7 combat bots 10725 | -4/Armory | Reached level 27 10822 | -4/Armory | Destroyed 8 combat bots 10858 | -4/Armory | Energy Cycler disabled 10901 | -4/Armory | Destroyed 7 combat bots 11093 | -4/Armory | First assault squad dispatched 11203 | -4/Armory | Destroyed 12 combat bots 11321 | -4/Armory | Discovered new exit (range 3) 11325 | -4/Armory | Entered Lab 11325 | -4/Lab | Discovered new exit (range 9) 11333 | -4/Lab | Detected for breach 11334 | -4/Lab | Gained access to the hidden lab's interior 11334 | -4/Lab | Reached level 28 11339 | -4/Lab | Confronted by A5 11349 | -4/Lab | Destroyed A5 11389 | -4/Lab | Found Alien Artifact 11389 | -4/Lab | Identified Core Reset Matrix 11389 | -4/Lab | Used Core Reset Matrix 11393 | -4/Lab | Sensed 3 artifacts in vicinity 11401 | -4/Lab | Found Transdimensional Reconstructor 11417 | -4/Lab | Found Integrated Reactor 11417 | -4/Lab | Installed Integrated Reactor, increased core energy generation (+10) 11427 | -4/Lab | Found Core Regenerator 11450 | -4/Lab | Unable to decrypt terminal 11511 | -4/Lab | Unable to decrypt terminal 11511 | -4/Lab | Upgraded with Utility slot (x1) 11513 | -4/Lab | Found LC Capacitor 11522 | -4/Lab | Discovered new exit (range 7) 11524 | -4/Lab | Entered Research 11541 | -3/Research | Identified exit to Quarantine 11554 | -3/Research | Spotted B-86 Titan 11555 | -3/Research | Destroyed B-86 Titan 11576 | -3/Research | Destroyed 8 combat bots 11633 | -3/Research | Reached level 29 11666 | -3/Research | Entered Quarantine 11667 | -3/Quarantine | Detected hypermatrix surge 11667 | -3/Quarantine | Sensed 11 artifacts in vicinity 11724 | -3/Quarantine | Found Subatomic Replicator 11790 | -3/Quarantine | Spotted Alpha 7 11792 | -3/Quarantine | Destroyed Alpha 7 11810 | -3/Quarantine | Used Subatomic Replicator to create Supercharged Sigix Terminator 11813 | -3/Quarantine | Destroyed 12 combat bots 11834 | -3/Quarantine | Build established: Alien-Construct 11896 | -3/Quarantine | Intercept squad dispatched 11908 | -3/Quarantine | Spotted Tracker 11913 | -3/Quarantine | Destroyed Tracker 11937 | -3/Quarantine | Spotted Combat Programmer 11938 | -3/Quarantine | Destroyed Combat Programmer 12010 | -3/Quarantine | Identified exit to Research 12023 | -3/Quarantine | Found Core Reset Matrix 12025 | -3/Quarantine | Sensed 8 artifacts in vicinity 12026 | -3/Quarantine | Discovered exit to Research (range 15) 12097 | -3/Quarantine | Met incapacitated Sigix Warrior 12097 | -3/Quarantine | Lockdown squad dispatched 12097 | -3/Quarantine | Reached level 30 12156 | -3/Quarantine | Entered Research 12156 | -2/Research | Warlord forces began assault on 0b10 12167 | -2/Research | Discovered new exit (range 14) 12177 | -2/Research | Allied Derelicts emerged from ambush trap array 12230 | -2/Research | Spotted B-90 Cyclops 12237 | -2/Research | Reached level 31 12237 | -2/Research | Destroyed B-90 Cyclops 12250 | -2/Research | Discovered new exit (range 16) 12262 | -2/Research | Identified exit to Testing 12266 | -2/Research | Research machine network offline 12297 | -2/Research | Destroyed 7 combat bots 12323 | -2/Research | Entered Testing 12381 | -2/Testing | Found Prototype Hackware 12381 | -2/Testing | Identified System Mapper 12433 | -2/Testing | Spotted Striker 12433 | -2/Testing | Spotted Striker 12438 | -2/Testing | Found Prototype Device 12438 | -2/Testing | Identified AEGIS Remote Shield 12459 | -2/Testing | Spotted PG-ONVBKS2YK1 12461 | -2/Testing | Destroyed PG-ONVBKS2YK1 12556 | -2/Testing | Build established: Hacker-Construct 12561 | -2/Testing | Reached level 32 12637 | -2/Testing | Destroyed 8 combat bots 12697 | -2/Testing | Intercept squad dispatched 12699 | -2/Testing | Spotted Tracker 12701 | -2/Testing | Spotted Tracker 12703 | -2/Testing | Destroyed Tracker 12706 | -2/Testing | Spotted Combat Programmer 12707 | -2/Testing | Spotted Combat Programmer 12718 | -2/Testing | Core integrity fell below 50% 12719 | -2/Testing | Destroyed Combat Programmer 12734 | -2/Testing | Core integrity fell below 20% 12738 | -2/Testing | Destroyed Combat Programmer 12789 | -2/Testing | Destroyed Tracker 12797 | -2/Testing | Discovered new exit (range 6) 12847 | -2/Testing | Spotted Fortress 12887 | -2/Testing | Discovered new exit (range 6) 12890 | -2/Testing | Entered Section 7 12891 | -2/Section 7 | Sensed 22 artifacts in vicinity 13054 | -2/Section 7 | Destroyed 8 combat bots 13167 | -2/Section 7 | Reached level 33 13257 | -2/Section 7 | Found Integrated Dissipator 13257 | -2/Section 7 | Installed Integrated Dissipator, increased core heat dissipation (+20) 13355 | -2/Section 7 | Spotted B-90 Cyclops 13357 | -2/Section 7 | Destroyed B-90 Cyclops 13429 | -2/Section 7 | Spotted S7 Guard 13442 | -2/Section 7 | Destroyed S7 Guard 13493 | -2/Section 7 | Spotted Alpha 7 13498 | -2/Section 7 | Intercept squad dispatched 13502 | -2/Section 7 | Spotted Tracker 13503 | -2/Section 7 | Spotted Tracker 13503 | -2/Section 7 | Destroyed Tracker 13507 | -2/Section 7 | Spotted Combat Programmer 13508 | -2/Section 7 | Destroyed Tracker 13509 | -2/Section 7 | Spotted Combat Programmer 13513 | -2/Section 7 | Destroyed Combat Programmer 13519 | -2/Section 7 | Spotted S7 Guard 13520 | -2/Section 7 | Spotted Alpha 7 13547 | -2/Section 7 | Destroyed Alpha 7 13553 | -2/Section 7 | Destroyed Alpha 7 13561 | -2/Section 7 | Destroyed S7 Guard 13629 | -2/Section 7 | Found Core Membrane 13629 | -2/Section 7 | Installed Core Membrane, gained immunity to corruption 13640 | -2/Section 7 | First assault squad dispatched 13642 | -2/Section 7 | Spotted B-99 Colossus 13673 | -2/Section 7 | Found LRC Energy Well 13673 | -2/Section 7 | Installed LRC Energy Well, increased energy storage capacity (+250) 13753 | -2/Section 7 | Destroyed B-99 Colossus 13791 | -2/Section 7 | Spotted Executioner 13797 | -2/Section 7 | Activated Sigix Exoskeleton 13797 | -2/Section 7 | Received instructions from Sigix Warrior 13801 | -2/Section 7 | Spotted Executioner 13811 | -2/Section 7 | Allies destroyed Executioner 13816 | -2/Section 7 | Spotted Striker 13819 | -2/Section 7 | Allies destroyed Executioner 13821 | -2/Section 7 | Spotted Striker 13838 | -2/Section 7 | Spotted Striker 13838 | -2/Section 7 | Spotted Striker 13846 | -2/Section 7 | Destroyed Striker 13850 | -2/Section 7 | Destroyed Striker 13856 | -2/Section 7 | Destroyed Striker 13866 | -2/Section 7 | Allies destroyed Striker 13886 | -2/Section 7 | Sigix Warrior authorized to use Shearcannon 13929 | -2/Section 7 | Reached level 34 13936 | -2/Section 7 | Sigix Exoskeleton integrity reduced to 80% 13958 | -2/Section 7 | Intercept squad dispatched 13960 | -2/Section 7 | Destroyed 8 combat bots 13969 | -2/Section 7 | Found Drained L-Cannon 13970 | -2/Section 7 | Installed L-Cannon capacitor 13971 | -2/Section 7 | Spotted Tracker 13971 | -2/Section 7 | Spotted Tracker 13973 | -2/Section 7 | Destroyed Tracker 13974 | -2/Section 7 | Allies destroyed Tracker 13979 | -2/Section 7 | Destroyed Investigator 13988 | -2/Section 7 | Spotted Striker 13988 | -2/Section 7 | Spotted Executioner 13988 | -2/Section 7 | Spotted Striker 13996 | -2/Section 7 | Allies destroyed Executioner 14001 | -2/Section 7 | Spotted Combat Programmer 14004 | -2/Section 7 | Allies destroyed Striker 14011 | -2/Section 7 | Destroyed Striker 14018 | -2/Section 7 | Destroyed Combat Programmer 14032 | -2/Section 7 | Spotted Combat Programmer 14043 | -2/Section 7 | Destroyed 9 combat bots 14059 | -2/Section 7 | Spotted Executioner 14065 | -2/Section 7 | Spotted Executioner 14066 | -2/Section 7 | Allies destroyed Executioner 14072 | -2/Section 7 | Destroyed Executioner 14085 | -2/Section 7 | Fired Supercharged Sigix Terminator 14085 | -2/Section 7 | Reached level 35 14086 | -2/Section 7 | Sigix Exoskeleton integrity reduced to 60% 14107 | -2/Section 7 | Spotted Striker 14114 | -2/Section 7 | Discovered new exit (range 18) 14123 | -2/Section 7 | Sigix Exoskeleton integrity reduced to 40% 14124 | -2/Section 7 | Entered Access 14124 | -1/Access | Accompanied by 1 ally (Sigix Warrior) 14125 | -1/Access | Core integrity fell below 50% 14139 | -1/Access | Garrison activated, responded to threat 14180 | -1/Access | Garrison activated, responded to threat 14219 | -1/Access | Fired L-Cannon 14234 | -1/Access | Crushed by falling debris 14235 | -1/Access | Emitted hypermatrix ping 14235 | -1/Access | Crushed by falling debris 14236 | -1/Access | Core integrity fell below 20% 14240 | -1/Access | Assembled emerged from beneath the floor 14244 | -1/Access | Crushed by falling debris 14245 | -1/Access | Crushed by falling debris 14245 | -1/Access | Smashed by cave-in Last Messages --------------- 14224_ Wave Collapse Detector explodes. 14227_ Slug penetrates Sigix Warrior. 14231_ Slug penetrates Y-72 Warden. 14234_ The unstable cave ceiling collapses. 14234_ Crushed by falling debris. 14235_ Emitted hypermatrix ping. 14235_ The unstable cave ceiling collapses. 14235_ Crushed by falling debris. 14240_ Assembled emerge from beneath the floor. as-20066 melds with Sigix Exoskeleton. as-71064 melds with Sigix Exoskeleton. as-29259 melds with Sigix Exoskeleton. 14240_ ALERT: Assault forces dispatched. as-23243 melds with Sigix Exoskeleton. 14244_ The unstable cave ceiling collapses. 14244_ Crushed by falling debris. 14245_ The unstable cave ceiling collapses. 14245_ Crushed by falling debris. 14245_ Broken Adv. Particle Charger destroyed. 14245_ Core Membrane filtered system corruption (4). Map ----- +----------------------------------------------------+ | ?????????????????????????????????????????????????? | | ?????????????????????????????????????????????????? | | ?????????????????????????????????????????????????? | | ?????????????????????????????????????????????????? | | ?????????????????????????????????????????????????? | | ?????????????????????????????????????????????????? | | ?????????????????????????????????????????????????? | | ?????????????????????????????????????????????????? | | ?????????????????????????????????????????????????? | | ?????????????????????????????????????????????????? | | ?????????????????????????????????????????????????? | | ?????????????????????????????????????????????????? | | ????????????????????????????????????????#????????? | | ??????????????????????????????????????? ????????? | | ?????????????????????????????????????# ????????? | | ???????????????????????????????????? #???????? | | ??????????????????????????????????? ?????????? | | ????????????????????????????????## #??????????? | | ???????????????????????????????# #???????????? | | ??????????????????????????????# ?????????????? | | ????????????????????????????## #??????????????? | | ???????????????????????????# #???????????????? | | ??????????????????????????# #????????????????? | | ???????????????????????### #??????????????????? | | ??????????????????????## # #???????????????????? | | ????????????????????### @ ###???????????????????? | | ???????????????????## ##?????????????????????? | | ??????????????????## ##??????????????????????? | | ????????????????### ###???????????????????????? | | ???????###?????## ##?????????????????????????? | | ########"#????## X ##??????????????????????????? | | #??### ###???????????????????????????? | | #### ##?????????????????????????????? | | "## # ##??????????????????????????????? | | " ## ###???????????????????????????????? | | "" " ##?????????????????????????????????? | | "" " ##??????????????????????????????????? | | """ " #????????????????????????????????????? | | "" "##?????????????????????????????????????? | | ##??????????????????????????????????????? | | #???????????????????????????????????????? | | ! ##??????????????????????????????????????? | | "#??????????????????????????????????????? | | +#######"##??????????????????????????????????????? | | #??###???????????????????????????????????????? | | #????????????????????????????????????????????? | | #????????????????????????????????????????????? | | #????????????????????????????????????????????? | | #????????????????????????????????????????????? | | " #????????????????????????????????????????????? | +----------------------------------------------------+ Best States ------------- Heat Dissipation 153 Energy Generation 93 Energy Capacity 1475 Matter Stores 350 Matter Capacity 350 Sight Range 20 Terrain Scan Range 16 Terrain Scan Density 10 ECM Strength 3 Power Amplification 40 Additional Mass Support 12 Resistance: KI 40 Resistance: TH 35 Resistance: EX 20 Resistance: EM 95 Resistance: I 20 Resistance: S 20 Resistance: P 20 Evasion (%) 69 Targeting Accuracy 6 Melee Accuracy 12 Recoil Reduction 8 Energy Filtering 30 Particle Charging 25 Offensive Hacking 35 Item Schematics ----------------- Exp. Myomer Leg | -2/Testing | Archive Exp. Heat Sink | -2/Testing | Archive Enh. Armored Heavy Treads | -2/Testing | Archive Exp. Signal Interpreter | -2/Testing | Archive Imp. Diametric Drive | -2/Testing | Archive Exp. Biometal Heavy Treads | -2/Section 7 | Archive Tiamat Missile Launcher | -2/Section 7 | Archive Adv. Myomer Leg | -2/Section 7 | Archive Exp. Power Amplifier | -2/Section 7 | Archive Exp. Optical Array | -2/Section 7 | Archive Hdn. Centrium Leg | -2/Section 7 | Archive Com. Mass Driver | -2/Section 7 | Archive Imp. Quantum Reactor | -2/Section 7 | Archive Graviton Cannon | -2/Section 7 | Archive Centrium Greatsword | -2/Section 7 | Archive Cld. Impulse Thruster | -2/Section 7 | Archive Robot Schematics ------------------ O-32 Director | -2/Testing | Archive W-44 Eye | -2/Testing | Archive G-67 Veteran | -2/Testing | Archive G-73 Enforcer | -2/Testing | Archive S-43 Plague | -2/Testing | Archive T-07 Excavator | -2/Section 7 | Archive Fabricated ------------ Nothing Alien Tech Used ----------------- Core Reset Matrix Integrated Reactor LC Capacitor Subatomic Replicator Integrated Dissipator Core Membrane LRC Energy Well Supercharged Sigix Terminator L-Cannon Achievements -------------- Universal Adapter Challenges ------------ None RPGLIKE | -11 -10 -10 -9 -9 -9 -8 -8 -8 -8 -6 -6 -6 -6 -6 -5 -5 -5 -5 -4 -4 -4 -4 -3 -3 -2 -2 -2 -1 --------- Run | Jun Mat Min Mat Min Exi Min Mat Sto Rec Fac Ext Cet Arc Hub Fac Upp Upp War Pro Fac Arm Lab Res Qua Res Tes Sec Acc Levels Raised 34 | . . 1 4 . 1 . 3 2 1 3 2 1 . 2 1 . 1 . 2 1 1 1 1 1 1 1 3 . XP Earned 55972 | 4000 915 1200 6382 500 200 500 3917 3397 1272 4505 3583 1301 427 2756 1850 220 376 811 2089 2108 1549 929 1302 1562 1860 1664 3870 927 XP Spent 51445 | 4000 . . . . . . 6010 6200 600 6510 5950 225 . 2000 3900 . 1280 . . . 4600 2300 760 1250 3000 1760 1100 . Upgrades 91 | 7 . . . . . . 10 4 1 17 12 5 . 1 5 . 4 . . . 2 1 2 1 5 13 1 . Power Slot 1 | . . . . . . . . . . . 1 . . . . . . . . . . . . . . . . . Propulsion Slot 3 | 1 . . . . . . 2 . . . . . . . . . . . . . . . . . . . . . Utility Slot 7 | 1 . . . . . . 2 2 . . . . . . . . . . . . 1 1 . . . . . . Weapon Slot 8 | 1 . . . . . . 2 2 . . . . . 1 1 . . . . . 1 . . . . . . . Core Integrity 17 | . . . . . . . . . . . . 5 . . . . . . . . . . . . . 12 . . Heat Dissipation 18 | . . . . . . . 3 . . 9 . . . . . . 4 . . . . . 2 . . . . . Matter Storage 1 | . . . . . . . . . . . . . . . . . . . . . . . . . . 1 . . Mass Support 3 | . . . . . . . 1 . 1 . . . . . . . . . . . . . . . . . 1 . Inventory Capacity 5 | 4 . . . . . . . . . . . . . . . . . . . . . . . 1 . . . . Sight Range 4 | . . . . . . . . . . . . . . . 4 . . . . . . . . . . . . . Ranged Accuracy 4 | . . . . . . . . . . 4 . . . . . . . . . . . . . . . . . . Hack Attack % 5 | . . . . . . . . . . . . . . . . . . . . . . . . . 5 . . . KI Resistance % 4 | . . . . . . . . . . . 4 . . . . . . . . . . . . . . . . . TH Resistance % 3 | . . . . . . . . . . . 3 . . . . . . . . . . . . . . . . . KI Damage % 4 | . . . . . . . . . . . 4 . . . . . . . . . . . . . . . . . TH Damage % 4 | . . . . . . . . . . 4 . . . . . . . . . . . . . . . . . . Protomatter Created 10338 | . 75 29 106 9 . . 226 365 353 367 771 121 63 1295 497 . . 490 497 598 985 . 673 442 377 364 1635 . Integrity Restored 11903 | . 125 68 657 . . . 333 195 87 324 1270 255 . 1133 453 . 114 147 455 615 798 231 27 122 7 517 3970 . Core 9578 | . 116 68 515 . . . 280 163 60 282 1202 164 . 952 399 . 85 147 354 507 611 211 20 98 5 450 2889 . Parts 2325 | . 9 . 142 . . . 53 32 27 42 68 91 . 181 54 . 29 . 101 108 187 20 7 24 2 67 1081 . Protomatter Decayed 7933 | . . 6 114 18 . . 66 111 236 224 495 116 . 810 299 . 24 888 395 323 591 52 489 396 874 243 889 274 Game ------ Seed LegHypervelocityRifle Manual? 0 Play Time 03:20:09 Cumulative 135.2 hours Start 2023.05.19 @ 15:24:37 End 2023.05.19 @ 22:49:02 Sessions 5 Manual Loads 0 Difficulty Adventurer Special Mode Winter2019/RPGLIKE Game No. 92 Rogue 46 Adventurer 12 Explorer 34 Win Type - Total 19 Types 10/0/4/4/1/0/0/0/0 Lore% 76 Gallery% 72 Achievement% 77 Wizard Run 0 Options --------- ASCII 0 Keyboard 0 Movement Mouse Keybinds 0 Fullscreen 1 Font 18/Smallcaps Map View 76x50 Tactical HUD 1 Map Filters NONE Filters NONE Steam 1 RUN: 962e2879-e7ef-4951-af2d-31ce68f6e7cb